[Event "44th Chess Olympiad Women 2022"]
[Site "Chennai"]
[Date "2022.08.07"]
[Round "9.45"]
[White "Park, Haneul"]
[Black "Silva Rosas, Natalia"]
[Result "0-1"]
[WhiteElo "1531"]
[BlackElo "1780"]
[Annotator "NA"]
[PlyCount "166"]
[EventDate "2022.??.??"]
[TimeControl "60"]

1. d4 {[%emt 0:00:03]} f5 {[%emt 0:00:06]} 2. c4 {[%emt 0:00:04]} g6 {[%emt 0:
00:00]} 3. g3 {[%emt 0:01:06]} Nf6 {[%emt 0:00:07]} 4. Nc3 {[%emt 0:00:08]} Bg7
{[%emt 0:00:05]} 5. Bg2 {[%emt 0:00:06]} d6 {[%emt 0:00:26]} 6. Nf3 {[%emt 0:
00:00]} O-O {[%emt 0:00:16]} 7. O-O {[%emt 0:00:14]} c6 {[%emt 0:00:04]} 8. d5
{[%emt 0:00:29]} c5 {[%emt 0:04:18]} 9. Qc2 {[%emt 0:24:49]} Na6 {[%emt 0:00:
00]} 10. a3 {[%emt 0:06:44]} Nc7 {[%emt 0:00:22]} 11. Rd1 {[%emt 0:01:07]} Qe8
{[%emt 0:01:04]} 12. Be3 {[%emt 0:12:00]} h6 {[%emt 0:01:41]} 13. h4 {[%emt 0:
00:00]} Bd7 {[%emt 0:00:29]} 14. Ra2 {[%emt 0:13:02]} Qf7 {[%emt 0:01:27]} 15.
b4 {[%emt 0:02:35]} Ng4 {[%emt 0:04:03]} 16. Bf4 {[%emt 0:02:52]} Na6 {[%emt 0:
00:00]} 17. b5 {[%emt 0:05:59]} Nc7 {[%emt 0:00:18]} 18. Nh2 {[%emt 0:03:06]}
Ne5 {[%emt 0:02:13]} 19. Nb1 {[%emt 0:06:24]} Ne8 {[%emt 0:02:52]} 20. Nf3 {
[%emt 0:01:10]} Ng4 {[%emt 0:00:28]} 21. Nh2 {[%emt 0:01:30]} Nef6 {[%emt 0:00:
00]} 22. Nxg4 {[%emt 0:00:36]} fxg4 {[%emt 0:00:44]} 23. e4 {[%emt 0:01:22]}
Nh5 {[%emt 0:00:55]} 24. Be3 {[%emt 0:00:36]} b6 {[%emt 0:01:09]} 25. a4 {
[%emt 0:01:27]} Kh7 {[%emt 0:01:14]} 26. Qd2 {[%emt 0:02:54]} a5 {[%emt 0:00:
00]} 27. e5 {[%emt 0:02:56]} Bf5 {[%emt 0:01:49]} 28. e6 {[%emt 0:01:43]} Qg8 {
[%emt 0:00:11]} 29. Nc3 {[%emt 0:00:54]} Nf6 {[%emt 0:00:24]} 30. Bf4 {[%emt 0:
00:00]} Qh8 {[%emt 0:00:35]} 31. Ne2 {[%emt 0:01:16]} Ne4 {[%emt 0:01:03]} 32.
Qe3 {[%emt 0:00:46]} Nf6 {[%emt 0:00:49]} 33. Qd2 {[%emt 0:01:00]} Kg8 {
[%emt 0:02:13]} 34. Re1 {[%emt 0:00:59]} Be4 {[%emt 0:02:44]} 35. Bxe4 {
[%emt 0:00:59]} Nxe4 {[%emt 0:00:07]} 36. Qd3 {[%emt 0:00:42]} g5 {[%emt 0:00:
00]} 37. Qxe4 {[%emt 0:00:24]} gxf4 {[%emt 0:00:24]} 38. Nxf4 {[%emt 0:00:15]}
Bd4 {[%emt 0:04:08]} 39. Ng6 {[%emt 0:00:33]} Qf6 {[%emt 0:00:38]} 40. Nxf8 {
[%emt 0:00:34]} Rxf8 {[%emt 0:00:09]} 41. Qxg4+ {[%emt 0:30:40]} Kh8 {[%emt 0:
00:00]} 42. Rf1 {[%emt 0:00:40]} Rg8 {[%emt 0:00:16]} 43. Qh5 {[%emt 0:00:00]}
Rxg3+ {[%emt 0:00:00]} 44. Kh2 {[%emt 0:00:00]} Rf3 {[%emt 0:00:00]} 45. Qe8+ {
[%emt 0:00:00]} Kh7 {[%emt 0:00:00]} 46. Qf7+ {[%emt 0:00:00]} Qxf7 {[%emt 0:
00:00]} 47. exf7 {[%emt 0:00:00]} Be5+ {[%emt 0:00:00]} 48. Kg2 {[%emt 0:00:00]
} Rxf7 {[%emt 0:00:00]} 49. Rc2 {[%emt 0:00:00]} Rf4 {[%emt 0:00:00]} 50. h5 {
[%emt 0:00:00]} Kg7 {[%emt 0:00:00]} 51. Rg1 {[%emt 0:00:00]} Kf7 {[%emt 0:00:
00]} 52. Rh1 {[%emt 0:00:00]} Rd4 {[%emt 0:00:00]} 53. Rh3 {[%emt 0:00:28]} Rd1
{[%emt 0:00:00]} 54. Rh1 {[%emt 0:01:56]} Rd4 {[%emt 0:00:00]} 55. Rh3 {
[%emt 0:00:10]} Kf6 {[%emt 0:00:00]} 56. Rf3+ {[%emt 0:02:36]} Bf4 {[%emt 0:00:
00]} 57. Rh3 {[%emt 0:01:35]} Kf5 {[%emt 0:00:00]} 58. Rf3 {[%emt 0:00:57]} Re4
{[%emt 0:00:00]} 59. Rh3 {[%emt 0:00:32]} Kg5 {[%emt 0:00:00]} 60. Rh1 {
[%emt 0:00:39]} Be5 {[%emt 0:00:00]} 61. Kf3 {[%emt 0:00:39]} Rd4 {[%emt 0:00:
00]} 62. Ke2 {[%emt 0:00:27]} Rg4 {[%emt 0:00:00]} 63. Kf3 {[%emt 0:00:16]} Kf5
{[%emt 0:00:00]} 64. Rcc1 {[%emt 0:00:41]} Bd4 {[%emt 0:00:00]} 65. Rh2 {
[%emt 0:00:32]} Bf6 {[%emt 0:00:00]} 66. Ke3 {[%emt 0:00:41]} Bg5+ {[%emt 0:00:
00]} 67. f4 {[%emt 0:00:32]} Bxf4+ {[%emt 0:00:00]} 68. Kd3 {[%emt 0:00:24]}
Bxh2 {[%emt 0:00:00]} 69. Re1 {[%emt 0:00:11]} Be5 {[%emt 0:00:00]} 70. Rf1+ {
[%emt 0:00:04]} Rf4 {[%emt 0:00:00]} 71. Rg1 {[%emt 0:00:36]} Rf3+ {[%emt 0:00:
00]} 72. Ke2 {[%emt 0:00:40]} Rh3 {[%emt 0:00:12]} 73. Rg6 {[%emt 0:00:22]}
Rxh5 {[%emt 0:00:15]} 74. Rg8 {[%emt 0:00:19]} Rh4 {[%emt 0:00:21]} 75. Rb8 {
[%emt 0:00:08]} Rxc4 {[%emt 0:00:52]} 76. Rxb6 {[%emt 0:00:08]} Rxa4 {[%emt 0:
00:00]} 77. Rb8 {[%emt 0:00:21]} Ke4 {[%emt 0:00:16]} 78. Rb7 {[%emt 0:01:07]}
Ra2+ {[%emt 0:00:13]} 79. Kf1 {[%emt 0:00:11]} Kxd5 {[%emt 0:01:24]} 80. Rxe7 {
[%emt 0:00:10]} Rb2 {[%emt 0:00:08]} 81. Rb7 {[%emt 0:00:14]} c4 {[%emt 0:00:
00]} 82. b6 {[%emt 0:00:24]} c3 {[%emt 0:00:07]} 83. Rc7 {[%emt 0:00:33]} Rxb6
{[%emt 0:00:07]} 0-1

[Event "44th Chess Olympiad Women 2022"]
[Site "Chennai"]
[Date "2022.08.07"]
[Round "9.45"]
[White "Quevedo, Andreina"]
[Black "Park, Sunwoo"]
[Result "1/2-1/2"]
[WhiteElo "1841"]
[BlackElo "1773"]
[Annotator "NA"]
[PlyCount "67"]
[EventDate "2022.??.??"]
[TimeControl "60"]

1. e4 {[%emt 0:00:07]} c5 {[%emt 0:00:11]} 2. Nf3 {[%emt 0:00:14]} d6 {[%emt 0:
00:00]} 3. d4 {[%emt 0:00:38]} cxd4 {[%emt 0:00:06]} 4. Nxd4 {[%emt 0:00:05]}
Nf6 {[%emt 0:00:08]} 5. Nc3 {[%emt 0:00:23]} a6 {[%emt 0:00:07]} 6. Be2 {
[%emt 0:03:16]} e5 {[%emt 0:00:10]} 7. Nf3 {[%emt 0:01:17]} Be7 {[%emt 0:04:55]
} 8. O-O {[%emt 0:01:03]} O-O {[%emt 0:03:38]} 9. h3 {[%emt 0:03:36]} Nbd7 {
[%emt 0:05:41]} 10. Be3 {[%emt 0:09:46]} b5 {[%emt 0:02:42]} 11. a3 {[%emt 0:
00:00]} Bb7 {[%emt 0:00:26]} 12. Qd3 {[%emt 0:08:35]} Qc7 {[%emt 0:02:20]} 13.
Nh2 {[%emt 0:11:27]} Nc5 {[%emt 0:01:46]} 14. Bxc5 {[%emt 0:00:07]} dxc5 {
[%emt 0:00:06]} 15. Ng4 {[%emt 0:02:08]} c4 {[%emt 0:14:38]} 16. Nxf6+ {
[%emt 0:08:59]} Bxf6 {[%emt 0:00:09]} 17. Qe3 {[%emt 0:02:33]} Rad8 {[%emt 0:
00:00]} 18. Rad1 {[%emt 0:01:57]} Rd4 {[%emt 0:01:06]} 19. g3 {[%emt 0:04:24]}
Rfd8 {[%emt 0:01:06]} 20. Bf3 {[%emt 0:02:54]} h6 {[%emt 0:03:57]} 21. Nd5 {
[%emt 0:12:41]} Bxd5 {[%emt 0:00:41]} 22. exd5 {[%emt 0:00:05]} Qd7 {[%emt 0:
00:00]} 23. Kh2 {[%emt 0:02:27]} Qf5 {[%emt 0:04:07]} 24. c3 {[%emt 0:03:00]}
Rxd1 {[%emt 0:17:03]} 25. Rxd1 {[%emt 0:00:05]} Bg5 {[%emt 0:00:58]} 26. Qe4 {
[%emt 0:08:22]} Qxe4 {[%emt 0:00:30]} 27. Bxe4 {[%emt 0:00:01]} Be7 {[%emt 0:
00:00]} 28. g4 {[%emt 0:02:09]} Bc5 {[%emt 0:01:37]} 29. Kg3 {[%emt 0:00:31]}
Bd6 {[%emt 0:01:01]} 30. h4 {[%emt 0:00:34]} g6 {[%emt 0:02:08]} 31. Ra1 {
[%emt 0:02:38]} Rb8 {[%emt 0:00:31]} 32. h5 {[%emt 0:03:26]} gxh5 {[%emt 0:00:
00]} 33. gxh5 {[%emt 0:00:04]} Kg7 {[%emt 0:00:49]} 34. Kf3 {[%emt 0:01:36]}
1/2-1/2

[Event "44th Chess Olympiad Women 2022"]
[Site "Chennai"]
[Date "2022.08.07"]
[Round "9.45"]
[White "Roepke, Sofia"]
[Black "Kang, Sohyun"]
[Result "1-0"]
[WhiteElo "1869"]
[BlackElo "1593"]
[Annotator "NA RC"]
[PlyCount "63"]
[EventDate "2022.??.??"]
[TimeControl "60"]

1. e4 {[%emt 0:00:06]} e6 {[%emt 0:00:18]} 2. d4 {[%emt 0:00:04]} d5 {[%emt 0:
00:00]} 3. Nd2 {[%emt 0:00:27]} c5 {[%emt 0:00:27]} 4. exd5 {[%emt 0:00:19]}
Qxd5 {[%emt 0:00:11]} 5. Ngf3 {[%emt 0:00:25]} cxd4 {[%emt 0:00:14]} 6. Bc4 {
[%emt 0:00:19]} Qd6 {[%emt 0:00:05]} 7. O-O {[%emt 0:00:16]} Nf6 {[%emt 0:00:
00]} 8. Nb3 {[%emt 0:00:18]} Nc6 {[%emt 0:00:13]} 9. Nbxd4 {[%emt 0:00:16]}
Nxd4 {[%emt 0:00:11]} 10. Nxd4 {[%emt 0:00:09]} a6 {[%emt 0:00:39]} 11. b3 {
[%emt 0:02:19]} Qc7 {[%emt 0:01:41]} 12. Bb2 {[%emt 0:00:24]} Bd6 {[%emt 0:00:
00]} 13. Nf3 {[%emt 0:00:19]} O-O {[%emt 0:11:47]} 14. Qe2 {[%emt 0:01:04]} Kh8
{[%emt 0:03:12]} 15. Ne5 {[%emt 0:06:22]} b6 {[%emt 0:04:18]} 16. Bd3 {[%emt 0:
00:00]} Bb7 {[%emt 0:04:03]} 17. Rfe1 {[%emt 0:02:54]} a5 {[%emt 0:06:30]} 18.
a3 {[%emt 0:18:08]} Qc5 {[%emt 0:18:14]} 19. c4 {[%emt 0:13:44]} Rad8 {[%emt 0:
00:00]} 20. Bc2 {[%emt 0:20:56]} Qc7 {[%emt 0:09:16]} 21. h3 {[%emt 0:03:39]}
Ba8 {[%emt 0:02:15]} 22. Rad1 {[%emt 0:07:12]} Qb7 {[%emt 0:01:21]} 23. Qf1 {
[%emt 0:03:11]} Nh5 {[%emt 0:00:51]} 24. Rd4 {[%emt 0:02:18]} Bc5 {[%emt 0:00:
00]} 25. Rxd8 {[%emt 0:02:23]} Rxd8 {[%emt 0:00:09]} 26. Be4 {[%emt 0:00:15]}
Qc7 {[%emt 0:01:30]} 27. Bxa8 {[%emt 0:00:18]} Ng3 {[%emt 0:02:42]} 28. Rd1 {
[%emt 0:00:44]} Bxf2+ {[%emt 0:01:36]} 29. Kxf2 {[%emt 0:00:28]} Rxa8 {[%emt 0:
00:00]} 30. Kxg3 {[%emt 0:00:10]} f6 {[%emt 0:01:42]} 31. Rd7 {[%emt 0:00:19]}
Qb8 {[%emt 0:02:01]} 32. Rd8+ {[%emt 0:00:16]} 1-0

[Event "44th Chess Olympiad Women 2022"]
[Site "Chennai"]
[Date "2022.08.07"]
[Round "9.45"]
[White "You, Garam"]
[Black "Malan, Lucia"]
[Result "0-1"]
[WhiteElo "1407"]
[BlackElo "1741"]
[Annotator "NA"]
[PlyCount "52"]
[EventDate "2022.??.??"]
[TimeControl "60"]

1. d4 {[%emt 0:00:19]} d5 {[%emt 0:00:11]} 2. c4 {[%emt 0:00:02]} e6 {[%emt 0:
00:00]} 3. Nc3 {[%emt 0:00:04]} Nf6 {[%emt 0:00:06]} 4. Nf3 {[%emt 0:00:03]}
Be7 {[%emt 0:00:05]} 5. Bf4 {[%emt 0:00:16]} O-O {[%emt 0:00:11]} 6. e3 {
[%emt 0:00:02]} b6 {[%emt 0:00:06]} 7. Bd3 {[%emt 0:00:54]} Bb7 {[%emt 0:00:14]
} 8. O-O {[%emt 0:01:33]} c5 {[%emt 0:01:30]} 9. cxd5 {[%emt 0:03:26]} exd5 {
[%emt 0:01:21]} 10. Rc1 {[%emt 0:02:19]} Nbd7 {[%emt 0:02:39]} 11. Qe2 {
[%emt 0:05:20]} Ne4 {[%emt 0:12:38]} 12. Nd2 {[%emt 0:09:08]} Ndf6 {[%emt 0:00:
00]} 13. Ndxe4 {[%emt 0:06:19]} dxe4 {[%emt 0:02:12]} 14. Bb1 {[%emt 0:01:58]}
cxd4 {[%emt 0:01:40]} 15. exd4 {[%emt 0:00:38]} Qxd4 {[%emt 0:04:55]} 16. Nb5 {
[%emt 0:02:22]} Qa4 {[%emt 0:08:22]} 17. b3 {[%emt 0:03:50]} Qa5 {[%emt 0:00:
00]} 18. Rc7 {[%emt 0:04:16]} Ba6 {[%emt 0:02:47]} 19. a4 {[%emt 0:01:07]} Rfe8
{[%emt 0:04:37]} 20. Rd1 {[%emt 0:12:43]} Qb4 {[%emt 0:07:38]} 21. Qb2 {
[%emt 0:23:12]} Red8 {[%emt 0:05:04]} 22. Bd2 {[%emt 0:02:12]} Bxb5 {[%emt 0:
00:00]} 23. axb5 {[%emt 0:01:56]} Bc5 {[%emt 0:02:23]} 24. Qc2 {[%emt 0:06:59]}
Qd4 {[%emt 0:03:15]} 25. Qc1 {[%emt 0:07:36]} Qxf2+ {[%emt 0:02:03]} 26. Kh1 {
[%emt 0:00:04]} Qe2 {[%emt 0:04:10]} 0-1

[Event "44th Chess Olympiad Women 2022"]
[Site "Chennai"]
[Date "2022.08.07"]
[Round "9.46"]
[White "Jose de Ribbegren, Kenia"]
[Black "Kaslan, Catherine"]
[Result "1/2-1/2"]
[WhiteElo "1787"]
[BlackElo "1872"]
[Annotator "NA"]
[PlyCount "85"]
[EventDate "2022.??.??"]
[TimeControl "60"]

1. d4 {[%emt 0:00:04]} Nf6 {[%emt 0:00:16]} 2. Nf3 {[%emt 0:00:24]} e6 {
[%emt 0:00:34]} 3. Bf4 {[%emt 0:01:07]} b6 {[%emt 0:00:49]} 4. Nbd2 {[%emt 0:
00:00]} Bb7 {[%emt 0:03:10]} 5. Nc4 {[%emt 0:02:24]} d6 {[%emt 0:04:25]} 6. c3
{[%emt 0:04:19]} Be7 {[%emt 0:03:18]} 7. e3 {[%emt 0:02:02]} Ne4 {[%emt 0:00:
00]} 8. Nfd2 {[%emt 0:02:43]} Nd7 {[%emt 0:06:10]} 9. f3 {[%emt 0:03:08]} Bh4+
{[%emt 0:05:47]} 10. g3 {[%emt 0:03:00]} Nxd2 {[%emt 0:01:05]} 11. Nxd2 {
[%emt 0:05:15]} e5 {[%emt 0:05:56]} 12. dxe5 {[%emt 0:01:21]} dxe5 {[%emt 0:00:
00]} 13. Bxe5 {[%emt 0:02:48]} Nxe5 {[%emt 0:00:10]} 14. Qa4+ {[%emt 0:01:29]}
Kf8 {[%emt 0:02:30]} 15. gxh4 {[%emt 0:07:17]} Nxf3+ {[%emt 0:02:50]} 16. Nxf3
{[%emt 0:00:37]} Bxf3 {[%emt 0:00:51]} 17. Rg1 {[%emt 0:01:11]} c5 {[%emt 0:00:
00]} 18. Qf4 {[%emt 0:01:20]} Qf6 {[%emt 0:05:19]} 19. Qxf6 {[%emt 0:06:10]}
gxf6 {[%emt 0:00:26]} 20. Kf2 {[%emt 0:04:29]} Bh5 {[%emt 0:05:33]} 21. Be2 {
[%emt 0:04:47]} Bxe2 {[%emt 0:01:13]} 22. Kxe2 {[%emt 0:00:02]} Rd8 {[%emt 0:
00:00]} 23. Rad1 {[%emt 0:06:07]} Rxd1 {[%emt 0:03:03]} 24. Rxd1 {[%emt 0:00:
00]} Ke7 {[%emt 0:03:50]} 25. Kf3 {[%emt 0:01:29]} Rg8 {[%emt 0:03:02]} 26. c4
{[%emt 0:02:47]} Ke6 {[%emt 0:01:55]} 27. h3 {[%emt 0:01:19]} f5 {[%emt 0:00:
00]} 28. b3 {[%emt 0:05:01]} Re8 {[%emt 0:11:16]} 29. Rd5 {[%emt 0:04:14]} Kf6
{[%emt 0:00:09]} 30. Rd7 {[%emt 0:05:20]} Re7 {[%emt 0:02:47]} 31. Rd6+ {
[%emt 0:08:49]} Re6 {[%emt 0:05:41]} 32. Rd7 {[%emt 0:00:27]} a5 {[%emt 0:00:
00]} 33. Rb7 {[%emt 0:00:40]} Rd6 {[%emt 0:03:55]} 34. Kf4 {[%emt 0:01:16]} Re6
{[%emt 0:01:04]} 35. Kf3 {[%emt 0:00:04]} Kg6 {[%emt 0:00:22]} 36. h5+ {
[%emt 0:01:42]} Kxh5 {[%emt 0:00:21]} 37. Rxf7 {[%emt 0:00:02]} Kg6 {[%emt 0:
00:00]} 38. Rd7 {[%emt 0:01:54]} h6 {[%emt 0:00:38]} 39. Rd5 {[%emt 0:00:53]}
Kg5 {[%emt 0:01:42]} 40. h4+ {[%emt 0:02:27]} Kg6 {[%emt 0:00:53]} 41. Rd8 {
[%emt 0:31:41]} Kh5 {[%emt 0:03:53]} 42. Rd5 {[%emt 0:00:00]} Kg6 {[%emt 0:00:
00]} 43. Rd8 {[%emt 0:00:00]} 1/2-1/2

[Event "44th Chess Olympiad Women 2022"]
[Site "Chennai"]
[Date "2022.08.07"]
[Round "9.46"]
[White "Kaslan, Victoria"]
[Black "Berezovska, Svetlana"]
[Result "0-1"]
[WhiteElo "1477"]
[BlackElo "1781"]
[Annotator "NA RC"]
[PlyCount "58"]
[EventDate "2022.??.??"]
[TimeControl "60"]

1. e4 {[%emt 0:00:07]} c5 {[%emt 0:00:09]} 2. Nf3 {[%emt 0:00:15]} a6 {[%emt 0:
00:00]} 3. d4 {[%emt 0:00:26]} cxd4 {[%emt 0:00:30]} 4. Nxd4 {[%emt 0:00:48]}
Nf6 {[%emt 0:00:45]} 5. Nc3 {[%emt 0:00:32]} e5 {[%emt 0:00:43]} 6. Nb3 {
[%emt 0:02:11]} Bb4 {[%emt 0:00:44]} 7. Qd3 {[%emt 0:02:19]} d5 {[%emt 0:05:40]
} 8. exd5 {[%emt 0:01:31]} Nxd5 {[%emt 0:00:35]} 9. Bd2 {[%emt 0:03:12]} Bxc3 {
[%emt 0:05:58]} 10. Bxc3 {[%emt 0:01:28]} Nxc3 {[%emt 0:03:03]} 11. Qxc3 {
[%emt 0:07:47]} O-O {[%emt 0:03:14]} 12. Be2 {[%emt 0:04:53]} Qe7 {[%emt 0:00:
00]} 13. O-O {[%emt 0:06:50]} Bf5 {[%emt 0:03:54]} 14. Bd3 {[%emt 0:06:03]} Rc8
{[%emt 0:05:50]} 15. Qd2 {[%emt 0:02:37]} Rd8 {[%emt 0:01:51]} 16. Qe3 {
[%emt 0:02:45]} Bxd3 {[%emt 0:00:57]} 17. cxd3 {[%emt 0:03:16]} Nc6 {[%emt 0:
00:00]} 18. a3 {[%emt 0:03:17]} a5 {[%emt 0:17:57]} 19. Rac1 {[%emt 0:07:00]}
f6 {[%emt 0:05:10]} 20. Rfe1 {[%emt 0:01:47]} Qf7 {[%emt 0:01:33]} 21. Nc5 {
[%emt 0:05:55]} Nd4 {[%emt 0:04:55]} 22. Ne4 {[%emt 0:11:08]} Qb3 {[%emt 0:00:
00]} 23. Qg3 {[%emt 0:07:02]} Qf7 {[%emt 0:05:41]} 24. Rc3 {[%emt 0:00:28]}
Rac8 {[%emt 0:00:47]} 25. Rxc8 {[%emt 0:02:42]} Rxc8 {[%emt 0:00:36]} 26. Nd6 {
[%emt 0:00:14]} Ne2+ {[%emt 0:01:06]} 27. Kf1 {[%emt 0:07:01]} Nxg3+ {[%emt 0:
00:00]} 28. hxg3 {[%emt 0:00:12]} Qc7 {[%emt 0:00:16]} 29. Nxc8 {[%emt 0:00:50]
} Qxc8 {[%emt 0:00:05]} 0-1

[Event "44th Chess Olympiad Women 2022"]
[Site "Chennai"]
[Date "2022.08.07"]
[Round "9.46"]
[White "Lebel-Arias, Julia"]
[Black "Kaslan, Alexandra"]
[Result "1-0"]
[WhiteElo "1660"]
[BlackElo "1435"]
[Annotator "NA RC"]
[PlyCount "95"]
[EventDate "2022.??.??"]
[TimeControl "60"]

1. d4 {[%emt 0:00:09]} e6 {[%emt 0:00:15]} 2. c3 {[%emt 0:00:40]} Nf6 {[%emt 0:
00:00]} 3. Bg5 {[%emt 0:00:22]} d5 {[%emt 0:00:32]} 4. e3 {[%emt 0:00:23]} Nbd7
{[%emt 0:00:29]} 5. f4 {[%emt 0:00:29]} Be7 {[%emt 0:00:43]} 6. Nd2 {[%emt 0:
00:00]} h6 {[%emt 0:02:01]} 7. Bxf6 {[%emt 0:02:00]} Bxf6 {[%emt 0:01:21]} 8.
Ngf3 {[%emt 0:00:19]} c5 {[%emt 0:01:35]} 9. Bd3 {[%emt 0:00:12]} Qb6 {[%emt 0:
00:00]} 10. Qb1 {[%emt 0:00:47]} Qc7 {[%emt 0:03:00]} 11. g3 {[%emt 0:00:46]}
b6 {[%emt 0:02:21]} 12. a4 {[%emt 0:00:19]} a5 {[%emt 0:03:37]} 13. O-O {
[%emt 0:01:04]} O-O {[%emt 0:05:37]} 14. Re1 {[%emt 0:00:56]} Bb7 {[%emt 0:00:
00]} 15. Qd1 {[%emt 0:02:03]} Be7 {[%emt 0:03:20]} 16. Ne5 {[%emt 0:00:34]}
cxd4 {[%emt 0:02:50]} 17. exd4 {[%emt 0:00:24]} Nxe5 {[%emt 0:00:44]} 18. fxe5
{[%emt 0:00:20]} Kh8 {[%emt 0:15:37]} 19. Qe2 {[%emt 0:00:25]} Bc6 {[%emt 0:00:
00]} 20. Bc2 {[%emt 0:02:08]} g6 {[%emt 0:08:39]} 21. Nf3 {[%emt 0:00:29]} Rg8
{[%emt 0:01:09]} 22. Qe3 {[%emt 0:00:43]} Kg7 {[%emt 0:02:03]} 23. Rf1 {
[%emt 0:01:15]} Raf8 {[%emt 0:04:29]} 24. Rf2 {[%emt 0:01:03]} Qd7 {[%emt 0:00:
00]} 25. h4 {[%emt 0:00:54]} f6 {[%emt 0:06:35]} 26. exf6+ {[%emt 0:00:49]}
Bxf6 {[%emt 0:02:30]} 27. Ne5 {[%emt 0:00:23]} Bxe5 {[%emt 0:03:36]} 28. Qxe5+
{[%emt 0:00:14]} Kh7 {[%emt 0:01:37]} 29. Raf1 {[%emt 0:02:24]} Rxf2 {[%emt 0:
00:00]} 30. Rxf2 {[%emt 0:00:14]} Qe7 {[%emt 0:03:02]} 31. h5 {[%emt 0:00:24]}
Be8 {[%emt 0:01:22]} 32. Rf6 {[%emt 0:00:28]} Bf7 {[%emt 0:04:15]} 33. Kg2 {
[%emt 0:02:36]} Rg7 {[%emt 0:01:47]} 34. hxg6+ {[%emt 0:04:19]} Bxg6 {[%emt 0:
00:00]} 35. Rxe6 {[%emt 0:00:18]} Qg5 {[%emt 0:01:35]} 36. Qxg5 {[%emt 0:01:23]
} hxg5 {[%emt 0:00:16]} 37. Bxg6+ {[%emt 0:00:43]} Rxg6 {[%emt 0:00:45]} 38.
Re5 {[%emt 0:00:23]} Rd6 {[%emt 0:00:24]} 39. Rxg5 {[%emt 0:00:14]} Kh6 {
[%emt 0:00:33]} 40. Re5 {[%emt 0:00:13]} Kg6 {[%emt 0:01:21]} 41. g4 {[%emt 0:
00:00]} Kf6 {[%emt 0:30:23]} 42. Kf3 {[%emt 0:00:09]} Kg6 {[%emt 0:00:15]} 43.
g5 {[%emt 0:00:51]} Kf7 {[%emt 0:00:41]} 44. Kf4 {[%emt 0:00:41]} Kg6 {[%emt 0:
00:00]} 45. Kg4 {[%emt 0:00:19]} Kf7 {[%emt 0:00:12]} 46. Kf5 {[%emt 0:00:15]}
Kg7 {[%emt 0:00:48]} 47. Re7+ {[%emt 0:00:18]} Kf8 {[%emt 0:00:09]} 48. Re6 {
[%emt 0:00:31]} 1-0

[Event "44th Chess Olympiad Women 2022"]
[Site "Chennai"]
[Date "2022.08.07"]
[Round "9.46"]
[White "Wijnhard, Joelle"]
[Black "Berezovsky, Fiorina"]
[Result "0-1"]
[WhiteElo "1291"]
[BlackElo "1544"]
[Annotator "NA"]
[PlyCount "112"]
[EventDate "2022.??.??"]
[TimeControl "60"]

1. e4 {[%emt 0:00:30]} c5 {[%emt 0:00:22]} 2. Nf3 {[%emt 0:00:11]} a6 {[%emt 0:
00:00]} 3. d4 {[%emt 0:00:58]} cxd4 {[%emt 0:00:21]} 4. Nxd4 {[%emt 0:00:20]}
e6 {[%emt 0:00:40]} 5. Nc3 {[%emt 0:01:54]} Qc7 {[%emt 0:01:11]} 6. Bd3 {
[%emt 0:03:51]} Bc5 {[%emt 0:02:43]} 7. Nf3 {[%emt 0:04:28]} Nc6 {[%emt 0:00:
00]} 8. O-O {[%emt 0:06:07]} Nf6 {[%emt 0:06:52]} 9. h3 {[%emt 0:07:03]} O-O {
[%emt 0:02:59]} 10. Rb1 {[%emt 0:04:19]} b5 {[%emt 0:03:47]} 11. a3 {[%emt 0:
00:00]} Bb7 {[%emt 0:09:34]} 12. Re1 {[%emt 0:03:16]} d6 {[%emt 0:04:34]} 13.
Be3 {[%emt 0:06:55]} Bxe3 {[%emt 0:07:23]} 14. Rxe3 {[%emt 0:09:26]} Nd7 {
[%emt 0:02:42]} 15. Re1 {[%emt 0:00:00]} Nce5 {[%emt 0:06:21]} 16. Nxe5 {
[%emt 0:06:46]} Nxe5 {[%emt 0:11:21]} 17. Rc1 {[%emt 0:00:56]} Nc4 {[%emt 0:00:
00]} 18. Bxc4 {[%emt 0:05:48]} bxc4 {[%emt 0:00:00]} 19. Qd2 {[%emt 0:07:48]}
Rfd8 {[%emt 0:00:00]} 20. Qf4 {[%emt 0:01:28]} Qc6 {[%emt 0:02:08]} 21. Qg4 {
[%emt 0:03:42]} Qb6 {[%emt 0:04:48]} 22. Rb1 {[%emt 0:01:58]} Re8 {[%emt 0:00:
00]} 23. Na4 {[%emt 0:03:09]} Qa5 {[%emt 0:03:44]} 24. Nc3 {[%emt 0:01:45]} d5
{[%emt 0:02:38]} 25. exd5 {[%emt 0:00:29]} Bxd5 {[%emt 0:02:09]} 26. Nxd5 {
[%emt 0:03:29]} exd5 {[%emt 0:01:56]} 27. c3 {[%emt 0:01:04]} Qb5 {[%emt 0:00:
00]} 28. Rxe8+ {[%emt 0:03:02]} Rxe8 {[%emt 0:00:18]} 29. Kf1 {[%emt 0:00:34]}
g6 {[%emt 0:00:52]} 30. Qd4 {[%emt 0:01:49]} Re4 {[%emt 0:01:11]} 31. Qd2 {
[%emt 0:01:52]} d4 {[%emt 0:07:10]} 32. Re1 {[%emt 0:03:45]} Rxe1+ {[%emt 0:00:
00]} 33. Kxe1 {[%emt 0:00:27]} d3 {[%emt 0:02:22]} 34. Qd1 {[%emt 0:01:47]}
Qxb2 {[%emt 0:00:33]} 35. Qd2 {[%emt 0:01:42]} Qxd2+ {[%emt 0:00:20]} 36. Kxd2
{[%emt 0:00:05]} f5 {[%emt 0:00:10]} 37. f4 {[%emt 0:00:16]} Kf7 {[%emt 0:00:
00]} 38. g3 {[%emt 0:00:13]} h5 {[%emt 0:00:11]} 39. h4 {[%emt 0:00:31]} Ke6 {
[%emt 0:00:17]} 40. a4 {[%emt 0:00:31]} Kd5 {[%emt 0:00:15]} 41. Ke3 {[%emt 0:
00:00]} Kc5 {[%emt 0:33:12]} 42. Kd2 {[%emt 0:00:26]} Kb6 {[%emt 0:00:06]} 43.
Kc1 {[%emt 0:00:32]} Ka5 {[%emt 0:00:15]} 44. Kb2 {[%emt 0:00:26]} Kxa4 {
[%emt 0:00:08]} 45. Kc1 {[%emt 0:00:09]} Kb3 {[%emt 0:00:14]} 46. Kd2 {[%emt 0:
00:00]} a5 {[%emt 0:00:10]} 47. Kd1 {[%emt 0:00:09]} a4 {[%emt 0:00:13]} 48.
Kd2 {[%emt 0:00:05]} a3 {[%emt 0:00:07]} 49. Kd1 {[%emt 0:00:06]} a2 {[%emt 0:
00:00]} 50. Kd2 {[%emt 0:00:04]} a1=Q {[%emt 0:00:17]} 51. Ke3 {[%emt 0:00:06]}
Kxc3 {[%emt 0:00:11]} 52. Kf2 {[%emt 0:00:07]} Kd4 {[%emt 0:00:20]} 53. Kg2 {
[%emt 0:00:17]} d2 {[%emt 0:00:12]} 54. Kf2 {[%emt 0:00:16]} d1=Q {[%emt 0:00:
00]} 55. Kg2 {[%emt 0:00:07]} Qf1+ {[%emt 0:00:11]} 56. Kh2 {[%emt 0:00:07]}
Qh1# {[%emt 0:00:08]} 0-1